fUST/lending_fUST_20240110
["ID","MTS","AMOUNT","RATE_DAILY","PERIOD"]
[311042838,1704888642729,-500.0,0.00027397,2]
[311042839,1704888642738,-500.0,0.00027397,2]
[311042840,1704888642747,-643.41201668,0.00027397,2]
[311042841,1704888642758,-500.0,0.00027397,2]
[311042842,1704888642768,-212.49673005,0.00027397,2]
[311042843,1704888642777,-500.0,0.00027397,2]
[311042844,1704888642786,-500.0,0.00027397,2]
[311042845,1704888642795,-1304.05,0.00027397,2]
[311042846,1704888642804,-500.0,0.00027397,2]
[311042847,1704888642813,-170.38270553,0.00027397,2]
[311042848,1704888642824,-500.0,0.00027397,2]
[311042849,1704888642833,-500.0,0.00027397,2]
[311042850,1704888642843,-500.0,0.00027397,2]
[311042851,1704888642853,-500.0,0.00027397,2]
[311042852,1704888642862,-500.0,0.00027397,2]
[311042853,1704888642871,-500.0,0.00027397,2]
[311042854,1704888642881,-1000.0,0.00027397,5]
[311042855,1704888642892,-500.0,0.00027397,2]
[311042856,1704888642901,-500.0,0.00027397,2]
[311042857,1704888642910,-524.89574781,0.00027397,2]
[311042858,1704888642920,-500.0,0.00027397,2]
[311042859,1704888642929,-1376.93,0.00027397,2]
[311042861,1704888642939,-500.0,0.00027397,2]
[311042863,1704888642949,-545.35604248,0.00027397,2]
[311042865,1704888642959,-500.0,0.00027397,2]
[311042867,1704888642968,-500.0,0.00027397,2]
[311042869,1704888642978,-503.46709942,0.00027397,2]
[311042871,1704888642987,-724.38,0.00027397,2]
[311042872,1704888642996,-500.0,0.00027397,2]
[311042873,1704888643005,-501.69216036,0.00027397,2]
[311042874,1704888643014,-500.0,0.00027397,2]
[311042875,1704888643023,-500.0,0.00027397,2]
[311042876,1704888643032,-500.0,0.00027397,2]
[311042877,1704888643041,-655.36,0.00027397,2]
[311042878,1704888643050,-302.48071035,0.00027397,2]
[311042879,1704888643059,-500.0,0.00027397,2]
[311042880,1704888643068,-510.60463476,0.00027397,2]
[311042881,1704888643077,-500.0,0.00027397,2]
[311042882,1704888643086,-1169.33,0.00027397,2]
[311042883,1704888643095,-500.0,0.00027397,2]
[311042884,1704888643104,-500.0,0.00027397,2]
[311042885,1704888643114,-500.0,0.00027397,2]
[311042886,1704888643123,-346.47463783,0.00027397,2]
[311042887,1704888643132,-500.0,0.00027397,2]
[311042888,1704888643141,-500.0,0.00027397,2]
[311042889,1704888643150,-343.75474281,0.00027397,2]
[311042890,1704888643159,-500.0,0.00027397,2]
[311042891,1704888643168,-500.0,0.00027397,2]
[311042892,1704888643177,-1143.98,0.00027397,2]
[311042893,1704888643186,-500.0,0.00027397,2]
[311042894,1704888643194,-155.0,0.00027397,2]
[311042895,1704888643203,-500.0,0.00027397,2]
[311042896,1704888643214,-501.38033797,0.00027397,2]
[311042897,1704888643223,-500.0,0.00027397,2]
[311042898,1704888643231,-500.0,0.00027397,2]
[311042899,1704888643241,-500.0,0.00027397,2]
[311042900,1704888643250,-876.99,0.00027397,2]
[311042901,1704888643260,-500.0,0.00027397,2]
[311042902,1704888643269,-2973.29,0.00027397,2]
[311042903,1704888643277,-500.0,0.00027397,2]
[311042904,1704888643286,-500.0,0.00027397,2]
[311042905,1704888643295,-496.21810783,0.00027397,2]
[311042906,1704888643304,-1246.89,0.00027397,2]
[311042907,1704888643313,-500.0,0.00027397,2]
[311042908,1704888643321,-500.0,0.00027397,2]
[311042909,1704888643330,-1372.23,0.00027397,2]
[311042910,1704888643340,-797.4,0.00027397,2]
[311042911,1704888643348,-500.0,0.00027397,2]
[311042912,1704888643357,-500.0,0.00027397,2]
[311042913,1704888643366,-500.0,0.00027397,2]
[311042914,1704888643375,-967.66,0.00027397,2]
[311042915,1704888643384,-580.27532805,0.00027397,2]
[311042916,1704888643393,-1394.46,0.00027397,2]
[311042917,1704888643402,-1138.63,0.00027397,2]
[311042918,1704888643411,-1542.33,0.00027397,2]
[311042919,1704888643420,-500.0,0.00027397,2]
[311042920,1704888643428,-7.5666162,0.00027397,2]
[311042921,1704888643444,-500.0433838,0.00027397,2]
[311042922,1704888643453,-500.0,0.00027397,2]
[311042924,1704888643464,-500.0,0.00027397,2]
[311042925,1704888643474,-500.0,0.00027397,2]
[311042926,1704888643508,-500.0,0.00027397,2]
[311042927,1704888643517,-6992.03,0.00027397,2]
[311042928,1704888643526,-3127.32,0.00027397,2]
[311042929,1704888643536,-500.0,0.00027397,2]
[311042930,1704888643545,-500.0,0.00027397,2]
[311042931,1704888643555,-500.0,0.00027397,2]
[311042932,1704888643565,-5014.81,0.00027397,2]
[311042933,1704888643574,-500.0,0.00027397,2]
[311042934,1704888643584,-500.0,0.00027397,2]
[311042935,1704888643594,-500.0,0.00027397,2]
[311042936,1704888643604,-1052.57,0.00027397,2]
[311042937,1704888643614,-6493.32,0.00027397,2]
[311042938,1704888643624,-500.0,0.00027397,2]
[311042939,1704888643633,-500.0,0.00027397,2]
[311042940,1704888643643,-500.0,0.00027397,2]
[311042941,1704888643654,-1648.28,0.00027397,2]
[311042942,1704888643664,-599.73,0.00027397,2]
[311042943,1704888643673,-500.0,0.00027397,5]
[311042944,1704888643683,-500.0,0.00027397,2]
[311042945,1704888643693,-500.0,0.00027397,2]
[311042946,1704888643702,-500.0,0.00027397,2]
[311042947,1704888643714,-40490.39,0.00027397,2]
[311042948,1704888643723,-500.0,0.00027397,2]
[311042949,1704888643733,-4987.31,0.00027397,2]
[311042950,1704888643743,-511.12548671,0.00027397,2]
[311042951,1704888643752,-500.0,0.00027397,2]
[311042952,1704888643763,-585.29602357,0.00027397,2]
[311042953,1704888643773,-502.65996338,0.00027397,2]
[311042954,1704888643784,-14914.61,0.00027397,2]
[311042955,1704888643794,-561.16,0.00027397,2]
[311042956,1704888643804,-500.0,0.00027397,2]
[311042957,1704888643815,-500.0,0.00027397,2]
[311042958,1704888643826,-500.0,0.00027397,2]
[311042959,1704888643913,-500.0,0.00027397,2]
[311042960,1704888643930,-515.0953029,0.00027397,2]
[311042961,1704888643941,-500.0,0.00027397,2]
[311042962,1704888643951,-500.0,0.00027397,2]
[311042963,1704888643962,-500.0,0.00027397,2]
[311042964,1704888643971,-500.0,0.00027397,2]
[311042965,1704888643982,-500.0,0.00027397,2]
[311042966,1704888643992,-500.0,0.00027397,2]
[311042967,1704888644003,-265.0895561,0.00027397,2]
[311042968,1704888644013,-500.0,0.00027397,2]
[311042969,1704888644024,-500.0,0.00027397,2]
[311042970,1704888644035,-500.0,0.00027397,2]
[311042971,1704888644046,-500.0,0.00027397,2]
[311042972,1704888644056,-3823.29,0.00027397,2]
[311042973,1704888644068,-506.2982467,0.00027397,2]
[311042974,1704888644080,-500.0,0.00027397,2]
[311042975,1704888644091,-500.0,0.00027397,2]
[311042976,1704888644104,-500.0,0.00027397,2]
[311042977,1704888644115,-1861.59,0.00027397,2]
[311042978,1704888644125,-501.29303316,0.00027397,2]
[311042979,1704888644136,-500.0,0.00027397,2]
[311042980,1704888644147,-500.0,0.00027397,2]
[311042981,1704888644158,-769.58,0.00027397,2]
[311042982,1704888644169,-2250.24,0.00027397,2]
[311042983,1704888644180,-1221.02,0.00027397,2]
[311042984,1704888644194,-500.6363967,0.00027397,2]
[311042985,1704888644206,-504.49501268,0.00027397,2]
[311042986,1704888644216,-500.0,0.00027397,2]
[311042987,1704888644226,-500.0,0.00027397,2]
[311042988,1704888644239,-500.0,0.00027397,2]
[311042989,1704888644249,-500.0,0.00027397,2]
[311042990,1704888644259,-1230.31,0.00027397,2]
[311042991,1704888644270,-3275.78,0.00027397,2]
[311042992,1704888644280,-758.15,0.00027397,2]
[311042993,1704888644290,-2353.6,0.00027397,2]
[311042994,1704888644299,-500.0,0.00027397,2]
[311042995,1704888644309,-500.0,0.00027397,2]
[311042996,1704888644319,-500.0,0.00027397,2]
[311042997,1704888644329,-500.0,0.00027397,2]
[311042998,1704888644339,-500.0,0.00027397,2]
[311042999,1704888644348,-1000.0,0.00027397,2]
[311043000,1704888644357,-500.0,0.00027397,2]
[311043001,1704888644366,-500.0,0.00027397,2]
[311043002,1704888644375,-524.12489659,0.00027397,2]
[311043003,1704888644384,-800.0403612,0.000275,2]
[311043004,1704888644393,-500.0,0.00027534,2]
[311043005,1704888644402,-29467.95358637,0.00027571,2]
[311043006,1704888644412,-150.0,0.000276,2]
[311043007,1704888644421,-224.71504838,0.00027652,2]
[311043008,1704888644430,-500.0,0.00027671,2]
[311043009,1704888644439,-500.0,0.00027671,2]
[311043010,1704888644448,-398.56874292,0.00027671,2]
[311043011,1704888644457,-500.0,0.00027671,2]
[311043012,1704888644471,-500.0,0.00027671,2]
[311043013,1704888644481,-500.0,0.00027671,2]
[311043014,1704888644492,-500.0,0.00027671,2]
[311043015,1704888644502,-500.0,0.00027671,2]
[311043016,1704888644512,-500.0,0.00027671,2]
[311043017,1704888644522,-1000.0,0.00027671,4]
[311043018,1704888644533,-507.56888381,0.00027671,2]
[311043019,1704888644543,-500.0,0.00027671,2]
[311043020,1704888644552,-500.0,0.00027671,2]
[311043021,1704888644562,-674.59,0.00027671,2]
[311043022,1704888644571,-500.0,0.00027671,2]
[311043023,1704888644581,-500.0,0.00027671,2]
[311043024,1704888644590,-198.437001,0.00027671,2]
[311043025,1704888644600,-500.0,0.00027671,2]
[311043026,1704888644610,-500.0,0.00027671,2]
[311043027,1704888644620,-500.0,0.00027671,2]
[311043028,1704888644630,-500.0,0.00027671,2]
[311043029,1704888644640,-500.0,0.00027671,2]
[311043030,1704888644650,-500.0,0.00027671,2]
[311043031,1704888644659,-500.0,0.00027671,2]
[311043032,1704888644669,-500.0,0.00027671,2]
[311043033,1704888644679,-515.13168903,0.00027671,2]
[311043034,1704888644689,-500.0,0.00027671,2]
[311043035,1704888644699,-226.49621579,0.00027671,2]
[311043036,1704888644709,-500.0,0.00027671,2]
[311043037,1704888644720,-500.0,0.00027671,2]
[311043038,1704888644730,-533.78,0.00027671,2]
[311043039,1704888644741,-500.0,0.00027671,2]
[311043040,1704888644750,-1668.17,0.00027671,2]
[311043041,1704888644759,-500.0,0.00027671,2]
[311043042,1704888644768,-500.0,0.00027671,2]
[311043043,1704888644778,-500.0,0.00027671,2]
[311043044,1704888644787,-500.0,0.00027671,2]
[311043045,1704888644797,-500.0,0.00027671,2]
[311043046,1704888644806,-500.0,0.00027671,2]
[311043047,1704888644816,-500.0,0.00027671,2]
[311043048,1704888644826,-1304.05,0.00027671,2]
[311043049,1704888644836,-500.0,0.00027671,2]
[311043050,1704888644845,-416.32539612,0.00027671,2]
[311043051,1704888644855,-500.0,0.00027671,2]
[311043052,1704888644864,-500.0,0.00027671,2]
[311043053,1704888644874,-500.0,0.00027671,2]
[311043054,1704888644885,-500.0,0.00027671,2]
[311043055,1704888644897,-225.06263195,0.00027671,2]
[311043056,1704888644907,-500.0,0.00027671,2]
[311043057,1704888644917,-500.0,0.00027671,2]
[311043058,1704888644928,-1376.93,0.00027671,2]
[311043059,1704888644938,-500.27922658,0.00027671,2]
[311043060,1704888644949,-500.0,0.00027671,2]
[311043061,1704888644960,-500.0,0.00027671,2]
[311043062,1704888644970,-724.38,0.00027671,2]
[311043063,1704888644980,-500.0,0.00027671,2]
[311043064,1704888644990,-500.0,0.00027671,2]
[311043065,1704888644999,-500.0,0.00027671,2]
[311043066,1704888645009,-500.0,0.00027671,2]
[311043067,1704888645019,-655.36,0.00027671,2]
[311043068,1704888645030,-500.0,0.00027671,2]
[311043069,1704888645040,-500.0,0.00027671,2]
[311043070,1704888645051,-1169.33,0.00027671,2]
[311043071,1704888645061,-500.0,0.00027671,2]
[311043072,1704888645071,-500.0,0.00027671,2]
[311043073,1704888645081,-500.0,0.00027671,2]
[311043074,1704888645091,-500.0,0.00027671,2]
[311043075,1704888645101,-500.0,0.00027671,2]
[311043076,1704888645111,-500.0,0.00027671,2]
[311043077,1704888645121,-500.0,0.00027671,2]
[311043078,1704888645131,-1143.98,0.00027671,2]
[311043079,1704888645141,-500.0,0.00027671,2]
[311043080,1704888645152,-509.85890304,0.00027671,2]
[311043081,1704888645162,-511.74782297,0.00027671,2]
[311043082,1704888645173,-500.0,0.00027671,2]
[311043083,1704888645184,-500.0,0.00027671,2]
[311043084,1704888645194,-876.99,0.00027671,2]
[311043085,1704888645204,-500.0,0.00027671,2]
[311043086,1704888645215,-2973.29,0.00027671,2]
[311043087,1704888645226,-500.0,0.00027671,2]
[311043088,1704888645237,-500.0,0.00027671,2]
[311043089,1704888645247,-1246.89,0.00027671,2]
[311043090,1704888645257,-500.0,0.00027671,2]
[311043091,1704888645268,-647.68493227,0.00027671,2]
[311043092,1704888645279,-1372.23,0.00027671,2]
[311043093,1704888645289,-797.4,0.00027671,2]
[311043094,1704888645300,-500.0,0.00027671,2]
[311043095,1704888645309,-478.04441609,0.00027671,2]
[311043096,1704888645320,-500.0,0.00027671,2]
[311043097,1704888645331,-967.66,0.00027671,2]
[311043098,1704888645340,-1394.46,0.00027671,2]
[311043099,1704888645349,-1138.63,0.00027671,2]
[311043100,1704888645359,-1542.33,0.00027671,2]
[311043101,1704888645368,-500.0,0.00027671,2]
[311043102,1704888645378,-507.61,0.00027671,2]
[311043103,1704888645388,-500.0,0.00027671,2]
[311043104,1704888645398,-500.0,0.00027671,2]
[311043105,1704888645408,-500.0,0.00027671,2]
[311043106,1704888645418,-500.0,0.00027671,2]
[311043107,1704888645428,-6992.03,0.00027671,2]
[311043108,1704888645437,-3127.32,0.00027671,2]
[311043109,1704888645447,-500.0,0.00027671,2]
[311043110,1704888645457,-500.0,0.00027671,2]
[311043111,1704888645471,-500.0,0.00027671,2]
[311043112,1704888645481,-5014.81,0.00027671,2]
[311043113,1704888645491,-500.0,0.00027671,2]
[311043114,1704888645500,-500.0,0.00027671,2]
[311043115,1704888645510,-500.0,0.00027671,2]
[311043116,1704888645522,-1052.57,0.00027671,2]
[311043117,1704888645531,-6493.32,0.00027671,2]
[311043118,1704888645541,-500.0,0.00027671,2]
[311043119,1704888645551,-500.0,0.00027671,2]
[311043120,1704888645560,-1648.28,0.00027671,2]
[311043121,1704888645570,-599.73,0.00027671,2]
[311043122,1704888645580,-500.0,0.00027671,5]
[311043123,1704888645590,-500.0,0.00027671,2]
[311043124,1704888645600,-40490.39,0.00027671,2]
[311043125,1704888645610,-500.0,0.00027671,2]
[311043126,1704888645620,-4987.31,0.00027671,2]
[311043127,1704888645629,-14914.61,0.00027671,2]
[311043128,1704888645639,-561.16,0.00027671,2]
[311043129,1704888645649,-500.0,0.00027671,2]
[311043130,1704888645659,-500.0,0.00027671,2]
[311043131,1704888645668,-302.133268,0.00027671,2]
[311043132,1704888645678,-500.0,0.00027671,2]
[311043133,1704888645688,-500.0,0.00027671,2]
[311043134,1704888645697,-500.0,0.00027671,2]
[311043135,1704888645706,-500.0,0.00027671,2]
[311043137,1704888645718,-500.0,0.00027671,2]
[311043138,1704888645726,-500.0,0.00027671,2]
[311043139,1704888645735,-500.0,0.00027671,2]
[311043141,1704888645744,-500.0,0.00027671,2]
[311043142,1704888645753,-500.0,0.00027671,2]
[311043144,1704888645763,-500.0,0.00027671,2]
[311043145,1704888645773,-500.0,0.00027671,2]
[311043147,1704888645782,-3823.29,0.00027671,2]
[311043149,1704888645791,-500.0,0.00027671,2]
[311043150,1704888645801,-500.0,0.00027671,2]
[311043152,1704888645810,-500.0,0.00027671,2]
[311043153,1704888645819,-1861.59,0.00027671,2]
[311043155,1704888645829,-500.0,0.00027671,2]
[311043156,1704888645839,-500.0,0.00027671,2]
[311043158,1704888645848,-769.58,0.00027671,2]
[311043159,1704888645858,-2250.24,0.00027671,2]
[311043161,1704888645867,-1221.02,0.00027671,2]
[311043162,1704888645877,-500.0,0.00027671,2]
[311043164,1704888645886,-500.0,0.00027671,2]
[311043166,1704888645895,-500.0,0.00027671,2]
[311043169,1704888645904,-1230.31,0.00027671,2]
[311043171,1704888645913,-3275.78,0.00027671,2]
[311043173,1704888645922,-758.15,0.00027671,2]
[311043175,1704888645931,-2353.6,0.00027671,2]
[311043176,1704888645940,-500.0,0.00027671,2]
[311043177,1704888645949,-500.0,0.00027671,2]
[311043178,1704888645958,-500.0,0.00027671,2]
[311043179,1704888645970,-1000.0,0.00027671,2]
[311043181,1704888645980,-500.0,0.00027671,2]
[311043183,1704888645989,-687.59711705,0.000277,2]
[311043193,1704888646078,-500.0,0.00027808,2]
[311043195,1704888646088,-500.0,0.00027945,2]
[311043197,1704888646096,-500.0,0.00027945,2]
[311043199,1704888646105,-500.0,0.00027945,2]
[311043201,1704888646114,-500.0,0.00027945,2]
[311043203,1704888646123,-500.0,0.00027945,2]
[311043205,1704888646132,-500.0,0.00027945,2]
[311043207,1704888646141,-500.0,0.00027945,2]
[311043209,1704888646151,-500.0,0.00027945,2]
[311043211,1704888646160,-500.0,0.00027945,2]
[311043213,1704888646169,-674.59,0.00027945,2]
[311043215,1704888646179,-500.0,0.00027945,2]
[311043217,1704888646190,-500.0,0.00027945,2]
[311043219,1704888646201,-500.0,0.00027945,2]
[311043221,1704888646213,-500.0,0.00027945,2]
[311043223,1704888646222,-500.0,0.00027945,2]
[311043225,1704888646232,-500.0,0.00027945,2]
[311043227,1704888646241,-500.0,0.00027945,2]
[311043229,1704888646250,-500.0,0.00027945,2]
[311043231,1704888646259,-500.0,0.00027945,2]
[311043233,1704888646268,-500.0,0.00027945,2]
[311043234,1704888646278,-500.0,0.00027945,2]
[311043236,1704888646288,-515.61042052,0.00027945,2]
[311043238,1704888646297,-500.0,0.00027945,2]
[311043240,1704888646306,-533.78,0.00027945,2]
[311043242,1704888646315,-500.0,0.00027945,2]
[311043243,1704888646324,-1668.17,0.00027945,2]
[311043244,1704888646333,-500.0,0.00027945,2]
[311043245,1704888646342,-262.71124088,0.00027945,2]
[311043246,1704888646351,-56.89877747,0.00027945,2]
[311043247,1704888646500,-10562.60910873,0.0001996,3]
[311043248,1704888646515,-12700.21089127,0.0001996,3]
[311043249,1704888646525,-500.0,0.00027397,2]
[311043250,1704888646535,-500.0,0.00027671,2]
[311043251,1704888646545,-443.10122253,0.00027945,2]
[311043252,1704888646554,-500.0,0.00027945,2]
[311043253,1704888646565,-500.0,0.00027945,2]
[311043254,1704888646574,-624.43807266,0.00027945,2]
[311043255,1704888646584,-1304.05,0.00027945,2]
[311043256,1704888646595,-500.0,0.00027945,2]
[311043257,1704888646605,-500.0,0.00027945,2]
[311043258,1704888646615,-500.0,0.00027945,2]
[311043259,1704888646625,-500.0,0.00027945,2]
[311043260,1704888646636,-500.0,0.00027945,2]
[311043261,1704888646645,-500.0,0.00027945,2]
[311043262,1704888646656,-500.0,0.00027945,2]
[311043263,1704888646668,-1376.93,0.00027945,2]
[311043264,1704888646679,-500.0,0.00027945,2]
[311043265,1704888646690,-500.0,0.00027945,2]
[311043266,1704888646699,-724.38,0.00027945,2]
[311043267,1704888646709,-500.0,0.00027945,2]
[311043268,1704888646719,-500.0,0.00027945,2]
[311043269,1704888646728,-500.0,0.00027945,2]
[311043270,1704888646739,-655.36,0.00027945,2]
[311043271,1704888646750,-185.024086,0.00027945,2]
[311043272,1704888646760,-500.0,0.00027945,2]
[311043273,1704888646771,-1169.33,0.00027945,2]
[311043274,1704888646781,-500.0,0.00027945,2]
[311043275,1704888646790,-500.0,0.00027945,2]
[311043276,1704888646800,-500.0,0.00027945,2]
[311043277,1704888646811,-500.0,0.00027945,2]
[311043278,1704888646821,-500.0,0.00027945,2]
[311043279,1704888646831,-1143.98,0.00027945,2]
[311043280,1704888646840,-500.0,0.00027945,2]
[311043281,1704888646849,-500.0,0.00027945,2]
[311043282,1704888646858,-500.0,0.00027945,2]
[311043283,1704888646870,-876.99,0.00027945,2]
[311043284,1704888646881,-500.0,0.00027945,2]
[311043285,1704888646891,-2973.29,0.00027945,2]
[311043286,1704888646902,-500.0,0.00027945,2]
[311043287,1704888646912,-500.0,0.00027945,2]
[311043288,1704888646921,-1246.89,0.00027945,2]
[311043289,1704888646931,-500.0,0.00027945,2]
[311043290,1704888646941,-1372.23,0.00027945,2]
[311043291,1704888646950,-797.4,0.00027945,2]
[311043292,1704888646961,-500.0,0.00027945,2]
[311043293,1704888646972,-376.22589509,0.00027945,2]
[311043294,1704888646981,-967.66,0.00027945,2]
[311043295,1704888646991,-1394.46,0.00027945,2]
[311043296,1704888647002,-194.88049008,0.00027945,2]
[311043297,1704888647016,-277.64773056,0.00027945,2]
[311043298,1704888647031,-666.10177936,0.00027945,2]
[311043299,1704888647042,-1542.33,0.00027945,2]
[311043300,1704888647052,-500.0,0.00027945,2]
[311043301,1704888647061,-507.61,0.00027945,2]
[311043302,1704888647071,-500.0,0.00027945,2]
[311043303,1704888647081,-500.0,0.00027945,2]
[311043304,1704888647092,-500.0,0.00027945,2]
[311043305,1704888647103,-500.0,0.00027945,2]
[311043306,1704888647113,-6992.03,0.00027945,2]
[311043307,1704888647124,-3127.32,0.00027945,2]
[311043308,1704888647136,-500.0,0.00027945,2]
[311043309,1704888647146,-500.0,0.00027945,2]
[311043310,1704888647156,-532.07667742,0.00027945,2]
[311043311,1704888647166,-1450.9841412,0.00027945,2]
[311043312,1704888647178,-2214.39914936,0.00027945,2]
[311043313,1704888647190,-1349.42670944,0.00027945,2]
[311043314,1704888647199,-500.0,0.00027945,2]
[311043315,1704888647209,-500.0,0.00027945,2]
[311043316,1704888647220,-500.0,0.00027945,2]
[311043317,1704888647230,-313.01490215,0.00027945,2]
[311043318,1704888647243,-739.55509785,0.00027945,2]
[311043319,1704888647252,-3099.56258671,0.00027945,2]
[311043320,1704888647265,-3393.75741329,0.00027945,2]
[311043321,1704888647277,-500.0,0.00027945,2]
[311043322,1704888647288,-517.73035116,0.00027945,2]
[311043323,1704888647300,-1648.28,0.00027945,2]
[311043324,1704888647310,-599.73,0.00027945,2]
[311043325,1704888647322,-500.0,0.00027945,5]
[311043326,1704888647334,-500.0,0.00027945,2]
[311043327,1704888647345,-11054.41981357,0.00027945,2]
[311043328,1704888647372,-4808.99999991,0.00027108,2]
[311043329,1704888647385,-191.00000009,0.00027108,2]
[311043330,1704888647396,-500.0,0.00027397,2]
[311043331,1704888647406,-8190.48999986,0.00027945,2]
[311043332,1704888647419,-1372.94573367,0.00027945,2]
[311043333,1704888647532,-500.0,0.00027397,2]
[311043334,1704888647541,-836.34,0.00027945,2]
[311043335,1704888647557,-503.3769544,0.00027397,2]
[311043336,1704888647567,-19036.1944529,0.00027945,2]
[311043337,1704888647576,-500.0,0.00027945,2]
[311043338,1704888647585,-4987.31,0.00027945,2]
[311043339,1704888647594,-14914.61,0.00027945,2]
[311043340,1704888647603,-561.16,0.00027945,2]
[311043341,1704888647613,-514.70488117,0.00027945,2]
[311043342,1704888647623,-500.0,0.00027945,2]
[311043343,1704888647632,-600.72202178,0.00027945,2]
[311043344,1704888647642,-500.0,0.00027945,2]
[311043345,1704888647651,-500.0,0.00027945,2]
[311043346,1704888647662,-500.0,0.00027945,2]
[311043347,1704888647673,-500.0,0.00027945,2]
[311043348,1704888647683,-500.0,0.00027945,2]
[311043349,1704888647694,-500.0,0.00027945,2]
[311043350,1704888647704,-500.0,0.00027945,2]
[311043351,1704888647716,-500.0,0.00027945,2]
[311043352,1704888647727,-3823.29,0.00027945,2]
[311043353,1704888647738,-500.0,0.00027945,2]
[311043354,1704888647748,-409.05798696,0.00027945,2]
[311043355,1704888647759,-1861.59,0.00027945,2]
[311043356,1704888647769,-500.0,0.00027945,2]
[311043357,1704888647779,-500.0,0.00027945,2]
[311043358,1704888647789,-500.0,0.00027945,2]
[311043359,1704888647800,-769.58,0.00027945,2]
[311043360,1704888647810,-2250.24,0.00027945,2]
[311043361,1704888647820,-760.27352564,0.00027945,2]
[311044858,1704888700035,10000.0,0.000172,2]
[311044859,1704888712310,10000.0,0.000172,2]
[311044861,1704888748353,8378.0,0.000172,2]
[311044862,1704888819503,9000.0,0.0003,30]
[311045024,1704889832599,-154.8915759,0.00017804,3]
[311045026,1704889832609,-246.05359663,0.00017805,2]
[311045028,1704889832624,-1492.72897309,0.00017814,2]
[311045030,1704889832638,-2004.82968734,0.00017814,2]
[311045033,1704889832652,-2302.5,0.00017814,2]
[311045035,1704889832664,-8033.15079906,0.00017814,2]
[311045202,1704889838499,-5995.19044244,0.00017814,2]
[311045203,1704889838509,-5800.44655192,0.00017815,2]
[311045205,1704889838518,-10862.66300563,0.00017817,2]
[311045206,1704889838534,-14037.33699437,0.00017817,2]
[311045207,1704889838543,-284.6644182,0.00017957,2]
[311045208,1704889838553,-167.43608784,0.00017981,2]
[311045210,1704889838562,-216.13345991,0.0001809,2]
[311045212,1704889838571,-10000.0,0.00019,2]
[311045213,1704889838580,-176.808147,0.00019178,2]
[311045214,1704889838589,-1112.08388858,0.000195,2]
[311045215,1704889838599,-3476.43711676,0.00019598,2]
[311045216,1704889838608,-16527.43,0.00019958,3]
[311045217,1704889838621,-263.7943585,0.00019996,2]
[311045218,1704889838632,-1110.46572871,0.00019997,2]
[311045219,1704889838641,-2178.21480533,0.00019998,2]
[311045220,1704889838650,-218.876125,0.00019998,2]
[311045221,1704889838659,-309.69032205,0.00019998,2]
[311045222,1704889838667,-154.90705577,0.00019998,2]
[311045223,1704889838676,-946.99985386,0.00019998,2]
[311045224,1704889838686,-560.22977717,0.00019998,2]
[311045225,1704889838695,-882.98470053,0.00019998,2]
[311045226,1704889838704,-154.8915759,0.00019998,2]
[311045227,1704889838714,-454.89181024,0.00019998,2]
[311045228,1704889838722,-901.30981836,0.00019999,2]